[Event "Germany Countries-chT Youth 2022"]
[Site "Wiesbaden"]
[Date "2022.10.01"]
[Round "2"]
[White "Nied, Pascal"]
[Black "Leonard, Timo"]
[Result "0-1"]
[ECO "B13"]
[WhiteElo "2131"]
[BlackElo "2067"]
[Annotator "TA"]
[PlyCount "108"]
[EventDate "2022.09.28"]
[EventType "team-tourn"]
[EventRounds "7"]
[EventCountry "GER"]
[SourceTitle "playchess.com"]
[Source "ChessBase"]
[SourceQuality "1"]
[TimeControl "40/5400+30:1800+30"]

{[%evp 19,108,26,30,31,28,8,8,8,21,8,8,8,8,8,11,7,12,0,8,0,0,0,39,45,52,55,66,64,121,131,137,137,153,50,69,0,156,156,224,152,143,140,119,-3,-3,-4,-13,-24,-13,-71,-85,-58,-62,-67,-38,-68,-68,-63,-68,-70,-70,-62,-68,-66,-64,-135,-135,-244,-248,-260,-260,-279,-267,-292,-279,-424,-420,-327,-281,-419,-414,-731,-730,-794,-764,-712,-674,-1137,-394,-1225,-1039]} 1. e4 {[%emt 0:00:02]} c6 {[%emt 0:00:05]} 2. d4 {[%emt 0:00:05]} d5 {[%emt 0:00:03]} 3. exd5 {[%emt 0:00:05]} cxd5 {[%emt 0:00:06]} 4. Bd3 {[%emt 0:00:06]} Nc6 {[%emt 0:00:28]} 5. c3 {[%emt 0:00:05]} Nf6 {[%emt 0:00:07]} 6. Bf4 {[%emt 0:00:06]} Bg4 {[%emt 0:00:42]} 7. Qb3 {[%emt 0:00:12]} Qd7 {[%emt 0:00:53]} 8. Nd2 {[%emt 0:00:09]} e6 {[%emt 0:00:25]} 9. Ngf3 {[%emt 0:00:07]} Bd6 {[%emt 0:00:39]} 10. Bxd6 {[%emt 0:00:20]} Qxd6 {[%emt 0:00:05]} 11. O-O {[%emt 0:01:00] B13: Caro-Kann: Exchange Variation and Panov-Botvinnik Attack.} O-O {[%emt 0:00:06]} 12. Rae1 {[%emt 0:04:15]} Ne7 {[%emt 0:01:05]} 13. Ne5 {[%emt 0:07:55] The position is equal.} (13. Qxb7 Rfb8 14. Qa6 Qxa6 15. Bxa6 Rxb2 $17) 13... Bf5 {[%emt 0:01:20]} 14. Qd1 {[%emt 0:00:50]} (14. Qxb7 $2 Bxd3 15. Nxd3 Rfb8 16. Qxa8 Rxa8 $19) 14... Bxd3 {[%emt 0:05:52]} 15. Nxd3 {[%emt 0:00:06] [#]} Qa6 $146 {[%emt 0:30:10][%csl LRa2,LRd3]} ({Predecessor:} 15... Rab8 16. a4 Nc6 17. b4 b6 18. Ne5 Rbc8 19. Qb3 Rc7 20. Ra1 Rfc8 21. Nd3 Ne4 22. Nxe4 dxe4 {1-0 (39) Tabatabaei,M (2629)-Harsha,B (2509) Chess.com INT 2020}) 16. Qf3 {[%emt 0:26:53]} Ng6 {[%emt 0:04:37]} 17. a3 {[%emt 0:03:03]} Qb5 {[%emt 0:07:59]} 18. g4 {[%emt 0:11:15]} Rae8 {[%emt 0:11:30][%cal Oe6e5]} (18... Nxg4 19. a4 Qa6 20. Nc5 Nxh2 21. Kxh2 $16) 19. Qg3 {[%emt 0:09:50]} h5 {[%emt 0:16:01]} ({Don't take} 19... Nxg4 20. a4 Qxa4 21. Qxg4 $16) 20. h3 {[%emt 0:06:40]} h4 {[%emt 0:00:21]} 21. Qe3 {[%emt 0:00:40]} Nd7 {[%emt 0:05:49]} 22. f4 $1 {[%emt 0:02:48] Prevents e5.} Nb6 {[%emt 0:02:15]} 23. Rf2 {[%emt 0:08:34]} Nc4 {[%emt 0:03:45]} (23... f6 $14) 24. Nxc4 $16 {[%emt 0:01:43]} dxc4 {[%emt 0:00:15]} 25. Ne5 {[%emt 0:00:56]} Ne7 {[%emt 0:00:48]} 26. Nf3 {[%emt 0:06:32]} (26. Qe2 $16) 26... Ng6 $14 {[%emt 0:02:58]} 27. Ne5 {[%emt 0:00:24]} (27. Rg2 $14) 27... Ne7 $1 $16 {[%emt 0:00:10]} 28. Qe2 {[%emt 0:01:22]} Rc8 {[%emt 0:00:04]} (28... Nd5 $16 29. Qxc4 (29. Nxc4 f6 $16) 29... Qxc4 30. Nxc4 Rd8) 29. Nf3 {[%emt 0:00:12]} Ng6 {[%emt 0:00:44]} 30. Qe4 {[%emt 0:00:25]} Rce8 {[%emt 0:02:54] [#]} 31. f5 {[%emt 0:03:44]} ({White should play} 31. Ne5 $1 $16) 31... exf5 $11 {[%emt 0:00:09]} 32. Qxf5 {[%emt 0:00:05]} Qxf5 {[%emt 0:00:39]} 33. gxf5 {[%emt 0:00:05]} Nf4 $36 {[%emt 0:00:52][%mdl 2048] Black is pushing.} 34. Kh2 {[%emt 0:04:24]} (34. Kf1 $11) 34... Nd3 $17 {[%emt 0:00:05][%csl LRe1,LRf2]} 35. Rxe8 {[%emt 0:00:05]} Rxe8 {[%emt 0:00:02][%mdl 4096] Endgame KRN-KRN} 36. Rd2 {[%emt 0:01:39]} Re3 {[%emt 0:01:28]} 37. Kg2 {[%emt 0:00:33]} Kf8 {[%emt 0:01:20]} 38. Nxh4 {[%emt 0:01:30][%cal Of5f6]} Ke7 {[%emt 0:01:01] Black is more active.} 39. Nf3 {[%emt 0:00:35]} Kf6 {[%emt 0:00:35]} 40. Ne5 {[%emt 0:00:36]} Nxe5 {[%emt 0:00:46]} 41. dxe5+ {[%emt 0:30:07]} Rxe5 $15 {[%emt 0:30:53] KR-KR} 42. Kg3 {[%emt 0:00:00]} (42. a4 $1 $15) 42... Rxf5 $17 {[%emt 0:00:00]} ({Weaker is} 42... Kxf5 43. Rd7 $11) 43. a4 {[%emt 0:00:00]} (43. Rd6+ $17 {was called for.} Ke7 44. Rd2) 43... Ra5 $19 {[%emt 0:00:00]} 44. Rd7 {[%emt 0:00:00]} b6 {[%emt 0:00:00][%cal Bb7b6,Bb6b5][%mdl 32]} ({And not} 44... Rxa4 45. Rxb7 Ke6 46. Kf3 $15) 45. Rd6+ {[%emt 0:00:00]} Ke7 {[%emt 0:00:00]} 46. Rd4 {[%emt 0:00:00]} Rxa4 {[%emt 0:00:00]} 47. Kf4 {[%emt 0:00:00]} (47. Rg4 {was worth a try.}) 47... b5 {[%emt 0:00:00]} 48. Rd5 {[%emt 0:00:00]} a6 {[%emt 0:00:00] [#] Strongly threatening ...Ra2.} 49. Rg5 {[%emt 0:00:00]} (49. Rd2 {is a better defense.}) 49... g6 {[%emt 0:00:00] ...Ra2 is the strong threat.} 50. Rc5 {[%emt 0:00:00]} (50. Rg1 $142) 50... Ra2 {[%emt 0:00:00]} 51. Rc7+ {[%emt 0:00:37]} Kf8 {[%emt 0:00:00]} 52. Ra7 {[%emt 0:00:30]} Rxb2 {[%emt 0:00:00]} 53. Ke5 {[%emt 0:01:06]} Re2+ $2 {[%emt 0:00:00]} (53... Rh2 54. Rxa6 Rxh3) 54. Kf6 $2 {[%emt 0:00:19]} (54. Kd4) 54... Rf2+ {[%emt 0:00:00] Black used his chance.  Weighted Error Value: White=0.54/Black=0.16 (very precise)} 0-1

[Event "Germany Countries-chT Youth 2022"]
[Site "Wiesbaden"]
[Date "2022.10.01"]
[Round "2"]
[White "Sommer, Justus"]
[Black "Lange, Jannis"]
[Result "1/2-1/2"]
[ECO "B31"]
[WhiteElo "2122"]
[BlackElo "2085"]
[Annotator "TA"]
[PlyCount "73"]
[EventDate "2022.09.28"]
[EventType "team-tourn"]
[EventRounds "7"]
[EventCountry "GER"]
[SourceTitle "playchess.com"]
[Source "ChessBase"]
[SourceQuality "1"]
[TimeControl "40/5400+30:1800+30"]

{[%evp 12,73,24,18,27,23,23,23,26,23,23,23,24,31,59,63,60,25,19,0,6,0,11,0,0,0,0,0,-2,-31,0,0,-2,-9,0,-38,-44,-69,-63,-64,-57,-168,-167,-173,-125,-150,-181,-290,-272,-285,-258,-228,0,0,0,0,0,0,0,0,0,0,0,0]} 1. e4 {[%emt 0:00:13]} c5 {[%emt 0:00:04]} 2. Nf3 {[%emt 0:00:22]} Nc6 {[%emt 0:00:07]} 3. Bb5 {[%emt 0:00:35]} g6 {[%emt 0:00:17]} 4. Bxc6 {[%emt 0:00:29]} dxc6 {[%emt 0:00:08]} 5. O-O {[%emt 0:00:33]} Bg7 {[%emt 0:00:26]} 6. d3 {[%emt 0:01:01]} Nf6 {[%emt 0:00:47]} 7. Re1 {[%emt 0:01:09]} Bg4 {[%emt 0:02:38] B31: Sicilian: 2...Nc6 3 Bb5 g6.} 8. Nbd2 {[%emt 0:00:56]} Nd7 {[%emt 0:06:22]} 9. h3 {[%emt 0:02:00]} Bxf3 {[%emt 0:00:48] White has an edge.} 10. Nxf3 {[%emt 0:00:18]} e5 {[%emt 0:10:46]} 11. Be3 {[%emt 0:02:14]} b6 {[%emt 0:03:28][%cal Bb7b6,Bb6b5][%mdl 32]} 12. a4 {[%emt 0:00:34][%cal Ba2a4,Ba4a5][%mdl 32]} Nf8 {[%emt 0:01:33] [#]} 13. a5 $146 {[%emt 0:02:20]} ({Predecessor:} 13. Qd2 Ne6 14. Qc3 Qd6 15. a5 O-O 16. Nd2 Nd4 17. Nc4 Qc7 18. axb6 axb6 19. Bxd4 cxd4 {1-0 (25) Alikhanov,F (2405)-Kotanjian,T (2443) Moscow 2005}) 13... Ne6 {[%emt 0:01:33]} 14. c3 {[%emt 0:10:54]} O-O {[%emt 0:05:45]} 15. Qa4 {[%emt 0:04:06]} b5 {[%emt 0:13:21]} 16. Qc2 {[%emt 0:01:43]} Qd6 {[%emt 0:02:08]} 17. Rad1 {[%emt 0:07:14]} Rfd8 {[%emt 0:02:53]} 18. Rd2 {[%emt 0:09:35]} Rd7 {[%emt 0:06:58]} 19. Red1 {[%emt 0:02:27][%cal Od3d4]} Rad8 {[%emt 0:04:22]} 20. Ng5 {[%emt 0:15:14]} Nxg5 {[%emt 0:05:47]} (20... Nd4 $5 21. cxd4 cxd4 $11) 21. Bxg5 {[%emt 0:00:14]} Bf6 {[%emt 0:00:04]} 22. Be3 {[%emt 0:02:06]} Qe7 {[%emt 0:02:42]} 23. b3 {[%emt 0:17:50][%cal Ob3b4]} Bg5 {[%emt 0:06:16]} 24. d4 {[%emt 0:05:10]} Bxe3 {[%emt 0:05:21]} 25. fxe3 {[%emt 0:00:16]} Qg5 $1 {[%emt 0:00:22]} 26. d5 {[%emt 0:10:04]} (26. Kf2 $1 $15) 26... Qxe3+ {[%emt 0:03:20]} 27. Kh1 {[%emt 0:00:03]} cxd5 {[%emt 0:04:51]} ({Black should play} 27... c4 $19 {...cxb3 is the strong threat.} 28. bxc4 bxc4) 28. Rxd5 {[%emt 0:00:21]} Rxd5 {[%emt 0:02:02]} 29. Rxd5 {[%emt 0:00:02]} (29. exd5 $142 f5 30. c4) 29... Rxd5 $19 {[%emt 0:03:19]} 30. exd5 {[%emt 0:00:05][%mdl 4096] Endgame KQ-KQ} Kf8 {[%emt 0:00:14]} 31. d6 {[%emt 0:01:21]} Ke8 $2 {[%emt 0:01:12] [#]} ({Better is} 31... Qe1+ $19 32. Kh2 e4) 32. Qd1 $1 $11 {[%emt 0:01:09] The position is equal.} Kd7 {[%emt 0:00:11]} 33. Qd5 {[%emt 0:01:21]} Qc1+ {[%emt 0:03:33]} 34. Kh2 {[%emt 0:00:04]} Qf4+ {[%emt 0:00:36]} 35. Kh1 {[%emt 0:00:11]} Qc1+ {[%emt 0:01:22]} 36. Kh2 {[%emt 0:00:03]} Qf4+ {[%emt 0:00:02]} 37. Kh1 {[%emt 0:00:01] Black had all chances to win.  Weighted Error Value: White=0.17 (very precise) /Black=0.14 (very precise)} 1/2-1/2

[Event "Germany Countries-chT Youth 2022"]
[Site "Wiesbaden"]
[Date "2022.10.01"]
[Round "2"]
[White "Gluma, Christian"]
[Black "Hänselmann, Hendrik"]
[Result "0-1"]
[ECO "B72"]
[WhiteElo "2107"]
[BlackElo "1989"]
[Annotator "TA"]
[PlyCount "84"]
[EventDate "2022.09.28"]
[EventType "team-tourn"]
[EventRounds "7"]
[EventCountry "GER"]
[SourceTitle "playchess.com"]
[Source "ChessBase"]
[SourceQuality "1"]
[TimeControl "40/5400+30:1800+30"]

{[%evp 18,84,29,7,26,-46,-16,-70,-46,-48,1,-26,-25,-24,-35,-34,0,-37,0,-24,0,-45,22,-39,-41,-72,-72,-85,-93,-95,-21,-27,-46,-113,-97,-95,-99,-281,-229,-390,-394,-385,-385,-414,-373,-399,-400,-494,-336,-323,-314,-342,-327,-347,-335,-520,-498,-1076,-718,-5362,-5358,-5278,-858,-858,-821,-951,-941,-911,-891]} 1. e4 {[%emt 0:00:04]} c5 {[%emt 0:00:04]} 2. Nf3 {[%emt 0:00:05]} d6 {[%emt 0:00:04]} 3. d4 {[%emt 0:00:07]} cxd4 {[%emt 0:00:04]} 4. Nxd4 {[%emt 0:00:05]} Nf6 {[%emt 0:00:04]} 5. Nc3 {[%emt 0:00:07]} Nc6 {[%emt 0:00:04]} 6. Be2 {[%emt 0:01:28]} g6 {[%emt 0:00:05]} 7. Be3 {[%emt 0:00:07]} Bg7 {[%emt 0:00:07]} 8. Qd2 {[%emt 0:00:36]} Ng4 {[%emt 0:02:01]} 9. Bxg4 {[%emt 0:00:53]} Bxg4 {[%emt 0:00:05]} 10. f3 {[%emt 0:00:41] [#] Hoping for Nxc6.} Be6 {[%emt 0:00:40] [#] B72: Sicilian Dragon: 6 Be3, lines with h3+Bc4 and sidelines.} 11. g4 $146 {[%emt 0:06:01]} (11. Ncb5 $11) ({Predecessor:} 11. Nxe6 fxe6 12. Bh6 Bf6 13. Ne2 Qa5 14. Qxa5 Nxa5 15. O-O-O g5 16. f4 gxf4 17. Bxf4 Rg8 18. g3 {½-½ (41) Ragger,M (2701)-Georgiadis,N (2534) Austria 2018}) 11... Rc8 {[%emt 0:03:01]} (11... Qa5 {feels hotter.} 12. Ncb5 Qxd2+ 13. Kxd2 Kd7) 12. O-O {[%emt 0:11:04]} ({Of course not} 12. Nxe6 fxe6 13. O-O O-O $17) (12. Nxc6 $11 bxc6 13. O-O) 12... Ne5 {[%emt 0:04:50] Black is slightly better.} 13. b3 $1 {[%emt 0:04:29] Prevents Nc4.} O-O {[%emt 0:06:57]} (13... Qa5 $15 {feels stronger.} 14. Nce2 (14. Nxe6 $2 fxe6 15. Bd4 O-O $19) 14... Qxd2 15. Bxd2 {[#]} Nxf3+ $1 16. Rxf3 Bxg4) 14. h3 {[%emt 0:13:18]} Qa5 {[%emt 0:11:17]} 15. Nce2 {[%emt 0:08:09]} Qxd2 {[%emt 0:06:23]} 16. Bxd2 {[%emt 0:00:05]} Nc6 {[%emt 0:02:01]} 17. c3 {[%emt 0:05:24]} d5 {[%emt 0:03:44]} 18. Rac1 {[%emt 0:08:24]} dxe4 {[%emt 0:03:09]} 19. fxe4 {[%emt 0:06:51]} Ne5 {[%emt 0:06:36]} ({Black should play} 19... Bd7 $15) 20. Nf4 {[%emt 0:10:25]} (20. Nxe6 $11 fxe6 21. Be3) 20... Bd7 $15 {[%emt 0:02:18]} 21. Nd5 {[%emt 0:00:36]} Rfe8 {[%emt 0:04:28]} 22. Bg5 {[%emt 0:04:17]} f6 {[%emt 0:03:27]} 23. Be3 {[%emt 0:04:28]} Nd3 {[%emt 0:03:05]} ({Better is} 23... h5 $17 24. gxh5 Bxh3) 24. Rcd1 $11 {[%emt 0:04:25]} Nc5 {[%emt 0:02:00]} 25. Ne2 {[%emt 0:05:52]} (25. e5 $15) 25... Nxe4 $17 {[%emt 0:01:59]} 26. Bxa7 {[%emt 0:01:16]} Bc6 $36 {[%emt 0:05:02][%mdl 2048] And now ...Ra8 would win. Keeping White busy.} 27. Nef4 $2 {[%emt 0:01:47] White does not recover from this.} (27. Nb4 $17) 27... e5 {[%emt 0:01:38]} 28. Nb6 $2 {[%emt 0:00:55]} (28. Ne2 {is a better defense.}) 28... exf4 $19 {[%emt 0:03:09]} 29. Nxc8 {[%emt 0:00:06]} Rxc8 {[%emt 0:00:05]} 30. Bd4 {[%emt 0:00:28]} Bh6 {[%emt 0:05:36]} 31. c4 {[%emt 0:01:23]} Re8 {[%emt 0:03:05]} 32. b4 {[%emt 0:01:18]} Ng3 {[%emt 0:06:04]} 33. Rfe1 {[%emt 0:00:59]} Ne2+ {[%emt 0:01:22]} 34. Kf2 {[%emt 0:00:34]} f3 {[%emt 0:00:10]} 35. b5 {[%emt 0:00:19]} Be4 {[%emt 0:00:52]} 36. Bxf6 {[%emt 0:00:26]} (36. Be3 $142 Bf8 37. Rd7) 36... Bf4 {[%emt 0:01:12] Threatens to win with ...Kf7. Black is clearly winning.} 37. Rd8 {[%emt 0:00:50]} (37. Kf1 $142 Bg3 38. c5) 37... Rxd8 {[%emt 0:01:54]} 38. Bxd8 {[%emt 0:00:07]} Bg3+ {[%emt 0:00:08] This bishop pair is nice.} 39. Kf1 {[%emt 0:00:05]} Bxe1 {[%emt 0:00:28]} (39... Bd3 $142 40. Rd1 Bxc4) 40. Kxe1 {[%emt 0:00:05]} Nf4 {[%emt 0:00:56]} 41. h4 {[%emt 0:30:44]} Nh3 {[%emt 0:30:35] ( -> ...f2+)} 42. Bb6 {[%emt 0:00:24] Against f2+} Bd3 {[%emt 0:00:37] Weighted Error Value: White=0.80/Black=0.63} 0-1

[Event "Germany Countries-chT Youth 2022"]
[Site "Wiesbaden"]
[Date "2022.10.01"]
[Round "2"]
[White "Pikalow, Michael"]
[Black "Hommer, Jeremy"]
[Result "0-1"]
[ECO "B12"]
[WhiteElo "2037"]
[BlackElo "2184"]
[Annotator "TA"]
[PlyCount "40"]
[EventDate "2022.09.28"]
[EventType "team-tourn"]
[EventRounds "7"]
[EventCountry "GER"]
[SourceTitle "playchess.com"]
[Source "ChessBase"]
[SourceQuality "1"]
[TimeControl "40/5400+30:1800+30"]

{[%evp 16,40,33,10,20,20,22,-38,-45,-49,-50,-42,-47,-72,-66,-78,-52,-51,-57,-56,-60,-90,-89,-139,-78,-212,-188]} 1. e4 {[%emt 0:00:15]} c6 {[%emt 0:00:07]} 2. d4 {[%emt 0:00:37]} d5 {[%emt 0:00:10]} 3. e5 {[%emt 0:00:35]} Bf5 {[%emt 0:00:07]} 4. Nf3 {[%emt 0:00:04]} e6 {[%emt 0:00:07]} 5. Be2 {[%emt 0:00:02]} Nd7 {[%emt 0:00:09]} 6. O-O {[%emt 0:00:11]} c5 {[%emt 0:00:15]} 7. Be3 {[%emt 0:00:10]} Ne7 {[%emt 0:00:12]} 8. c4 {[%emt 0:00:04]} dxc4 {[%emt 0:00:07][%cal Bd5c4,Bc4c3,Bc3c2][%mdl 32]} 9. Na3 {[%emt 0:00:02][%cal Bb1a3,Ba3b5,Bb5d4][%mdl 32]} c3 {[%emt 0:00:06] B12: Caro-Kann: Advance Variation.} (9... cxd4 10. Nxc4 Nd5 11. Nxd4 $16 (11. Qxd4 h6 $14) (11. Bxd4 Be7 $14)) 10. Nb5 {[%emt 0:00:03][%cal Rb5d6][%mdl 1024] [#] White has compensation.} Nd5 {[%emt 0:00:16]} 11. Bg5 {[%emt 0:15:16]} ({Much weaker is} 11. bxc3 a6 12. Nd6+ (12. Bg5 f6 $17) 12... Bxd6 13. exd6 Nxc3 $15) ({Better is} 11. Nxc3 $11 Nxe3 12. fxe3) 11... c2 $15 {[%emt 0:00:51] Black is slightly better.} 12. Qd2 {[%emt 0:10:12]} Qb6 {[%emt 0:04:17] Strongly threatening ...a6.} 13. a4 {[%emt 0:08:15]} a6 {[%emt 0:04:45] [#]} 14. dxc5 $146 {[%emt 0:09:23]} ({Predecessor:} 14. a5 Qc6 15. Na3 h6 16. Be3 Nxe3 17. fxe3 Qe4 18. Rfc1 cxd4 19. exd4 Rc8 20. Rxc2 Rxc2 21. Nxc2 Qxc2 {0-1 (39) Engel,L (2553)-Bluebaum,M (2670) Magdeburg 2021}) 14... Qxc5 {[%emt 0:04:32]} ({Don't take} 14... Bxc5 15. a5 Qc6 16. Nfd4 Bxd4 17. Nxd4 $18) 15. Nbd4 {[%emt 0:05:07]} h6 {[%emt 0:05:58]} 16. Be3 {[%emt 0:05:31]} Nxe3 {[%emt 0:01:29]} 17. Qxe3 {[%emt 0:00:02]} Bh7 $36 {[%emt 0:02:16][%mdl 2048] Black has good play.} 18. Rfc1 {[%emt 0:03:21][%cal Od4c2]} Rc8 {[%emt 0:00:21]} 19. Qb3 {[%emt 0:14:47]} (19. Nxc2 $142 Bxc2 20. Nd4 Qxe5 21. Qxe5 Nxe5 22. Rxc2 Rxc2 23. Nxc2) 19... Qb4 {[%emt 0:06:25]} (19... Qc7 $142 20. Qe3 Be7 21. Nxc2 Bxc2) 20. Ra3 {[%emt 0:02:40]} (20. Qxb4 $17 {was the only defense.} Bxb4 21. Nxc2) 20... Be7 {[%emt 0:04:32] White got outplayed after the opening.  Weighted Error Value: White=0.29 (precise) /Black=0.10 (very precise)} 0-1

[Event "Germany Countries-chT Youth 2022"]
[Site "Wiesbaden"]
[Date "2022.10.01"]
[Round "2"]
[White "Falke, Ornella"]
[Black "Herrmann, Jakob"]
[Result "1-0"]
[ECO "E69"]
[WhiteElo "1953"]
[BlackElo "1888"]
[Annotator "TA"]
[PlyCount "85"]
[EventDate "2022.09.28"]
[EventType "team-tourn"]
[EventRounds "7"]
[EventCountry "GER"]
[SourceTitle "playchess.com"]
[Source "ChessBase"]
[SourceQuality "1"]
[TimeControl "40/5400+30:1800+30"]

{[%evp 22,85,10,12,70,0,32,29,30,37,214,207,216,200,215,201,201,92,208,228,438,419,514,509,531,515,521,520,567,567,567,567,560,560,560,480,583,582,583,581,579,572,567,578,527,519,596,575,543,523,1047,1008,1065,1065,1060,1011,1101,1100,1203,1184,2093,2119,1596,1235,1061,918]} 1. d4 {[%emt 0:00:03] Pavlovic,M} Nf6 {[%emt 0:00:15]} 2. c4 {[%emt 0:00:09]} g6 {[%emt 0:00:17]} 3. g3 {[%emt 0:00:25]} Bg7 {[%emt 0:00:15]} 4. Bg2 {[%emt 0:00:09]} O-O {[%emt 0:00:23]} 5. Nc3 {[%emt 0:00:08]} d6 {[%emt 0:00:19]} 6. Nf3 {[%emt 0:00:18]} Nbd7 {[%emt 0:02:14]} 7. O-O {[%emt 0:00:20]} e5 {[%emt 0:00:57]} 8. e4 {[%emt 0:00:48]} c6 {[%emt 0:01:40]} 9. h3 {[%emt 0:01:17]} Qb6 {[%emt 0:01:27]} 10. d5 {[%emt 0:07:21]} cxd5 {[%emt 0:01:13]} 11. cxd5 {[%emt 0:00:36]} Nc5 {[%emt 0:03:45]} 12. Nd2 {[%emt 0:04:29] [#]} Nh5 $146 {[%emt 0:01:38] E69: King's Indian: Fianchetto: 6...Nbd7 7 0-0 e5 8 e4 c6 9 h3.} (12... Qc7 $11) ({Predecessor:} 12... Bd7 13. Qe2 Rfc8 14. Rd1 a5 15. Bf1 a4 16. Qf3 Qc7 17. Ndb1 b5 18. Bg5 Qd8 19. Nd2 Rab8 20. Rac1 {1-0 (64) Laznicka,V (2668)-Bortnyk,O (2565) Gjakova 2016 CBM 173 [Pavlovic,M]}) 13. Qe2 {[%emt 0:13:37]} ({White should try} 13. Nc4 $14 Qa6 14. Na3) 13... f5 {[%emt 0:03:15]} 14. Nc4 {[%emt 0:01:18]} Qa6 {[%emt 0:00:17] Hoping for ...b5. White has an edge.} 15. b4 {[%emt 0:07:29]} Na4 $2 {[%emt 0:07:29]} (15... Nxe4 $14 16. Nxe4 fxe4) 16. Nxa4 $18 {[%emt 0:00:19]} Qxa4 {[%emt 0:00:10]} 17. exf5 {[%emt 0:05:13]} (17. Nxd6 $6 f4) 17... Bd7 {[%emt 0:14:21]} 18. fxg6 {[%emt 0:06:49]} ({Don't play} 18. Nxd6 Qxb4 19. fxg6 Nxg3 20. gxh7+ (20. fxg3 Rxf1+ 21. Qxf1 Qxd6 $16) 20... Kh8 21. fxg3 Rxf1+ 22. Qxf1 (22. Bxf1 Qxd6 23. Bg2 e4 $16) 22... Qxd6) 18... hxg6 {[%emt 0:00:10]} 19. Nxd6 {[%emt 0:01:26]} (19. Bg5 $18) 19... Qxb4 {[%emt 0:00:18]} (19... Nxg3 $16 20. fxg3 Qxb4) 20. Ne4 {[%emt 0:12:33]} Bb5 $2 {[%emt 0:04:16]} (20... Nf6 {was called for.} 21. Bd2 Qa4) 21. Qg4 {[%emt 0:01:14][%cal Oe4f6] Strongly threatening Nf6+!} Bxf1 {[%emt 0:01:20]} 22. Nf6+ {[%emt 0:00:31][%mdl 64] [#] Discovered Attack. White is clearly winning.} ({Weaker is} 22. Bxf1 Qd4 23. Rb1 {[#]} (23. Qxg6 Qxa1 24. Ng5 Nf6 $11) 23... Nxg3 $1 $14) 22... Nxf6 {[%emt 0:02:35]} 23. Qxb4 {[%emt 0:00:11]} Bxg2 {[%emt 0:00:24]} 24. Kxg2 {[%emt 0:00:07]} Nxd5 {[%emt 0:03:55]} 25. Qb3 {[%emt 0:08:30]} Rad8 {[%emt 0:00:16]} 26. Bg5 {[%emt 0:01:24]} Bf6 {[%emt 0:00:09]} 27. Rd1 {[%emt 0:00:47]} Bxg5 {[%emt 0:01:10]} 28. Rxd5 {[%emt 0:00:05]} Rxd5 {[%emt 0:00:04]} 29. Qxd5+ {[%emt 0:00:04][%mdl 4096] Endgame KQ-KRB} Kg7 {[%emt 0:00:12]} 30. Qxe5+ {[%emt 0:00:34]} Bf6 {[%emt 0:00:11]} 31. Qe4 {[%emt 0:01:07]} Rf7 {[%emt 0:01:00]} 32. h4 {[%emt 0:00:38]} Re7 {[%emt 0:03:22]} 33. Qg4 {[%emt 0:00:15]} Kh6 {[%emt 0:00:09]} 34. Kh3 {[%emt 0:04:29]} Rf7 {[%emt 0:02:30]} 35. Qc4 {[%emt 0:07:43]} Re7 {[%emt 0:04:05]} 36. g4 {[%emt 0:01:35][%cal Bg3g4,Bg4g5][%mdl 32] And now Qg8 would win.} Kg7 {[%emt 0:01:22] Against Qg8+} 37. g5 {[%emt 0:01:27]} Ba1 {[%emt 0:01:50]} 38. Qc5 {[%emt 0:01:07]} Rf7 {[%emt 0:00:16]} 39. Qxa7 {[%emt 0:00:34]} Be5 {[%emt 0:00:25]} 40. Qc5 {[%emt 0:00:41]} Bf4 {[%emt 0:00:35]} 41. Qd4+ {[%emt 0:32:02]} Kh7 {[%emt 0:30:13]} 42. Qe4 {[%emt 0:02:19] White wants to mate with h5.} Kg7 {[%emt 0:00:30]} 43. Kg4 {[%emt 0:00:39] Weighted Error Value: White=0.12 (very precise) /Black=0.48} 1-0